Cogmind - Beta 10.2 @@@ ROGUE MODE // 2020.11.14 @ 02:07:08 // Halloween2020/ForbiddenLore Player: Ty Piggbottom Result: Destroyed by D-53 Grenadier with Mini Grenade Launcher Performance ------------- Evolutions (0) 0 Regions Visited (2) 400 Robots Destroyed (47) 235 Value Destroyed (836) 836 Prototype IDs (0) 0 Alien Tech Used (0) 0 Bonus (33) 33 TOTAL SCORE: 1504 Bonus ------- High Alert Combat Kills 33 Cogmind --------- Core Integrity 0/250 Matter 300/300 Energy 99/100 System Corruption 1% Temperature Cool (0) Movement Rolling (80) Location -10/Mines Parts ------- > --- POWER (1) -------- (None) > --- PROPULSION (2) --- Wheel > --- UTILITY (2) ------ Medium Storage Unit > --- WEAPON (2) ------- Assault Rifle > --- INVENTORY (8) ---- Light Nuclear Core Improved Heat Sink Sensor Array Weapon Shielding Trap Extractor Rocket Launcher Mining Laser Flail Peak State ------------ > --- POWER ------------ Light Nuclear Core > --- PROPULSION ------- Wheel Wheel > --- UTILITY ---------- Medium Storage Unit High-powered Tractor Beam > --- WEAPON ----------- EM Shotgun Medium Laser > --- INVENTORY -------- Sensor Array Weapon Shielding Tractor Beam Trap Extractor Assault Rifle Grenade Launcher Mining Laser Flail [Rating: 12] Favorites ----------- Power Light Nuclear Core Engine Ion Engine Power Core Light Nuclear Core Propulsion Wheel Wheel Wheel Utility Medium Storage Unit Device High-powered Tractor Beam Storage Medium Storage Unit Processor Seismic Analyzer Protection Weapon Shielding Weapon EM Shotgun Energy Gun EM Shotgun Ballistic Gun Assault Rifle Launcher Grenade Launcher Impact Weapon Flail Build | -11 -10 -10 ------- Run | Scr Mat Min Slots Evolved . | . . . Power . | . . . Propulsion . | . . . Utility . | . . . Weapon . | . . . Parts Attached 50 | 8 38 4 Power 5 | 1 3 1 Engine 2 | 1 1 . Core 3 | . 2 1 Reactor . | . . . Propulsion 3 | 2 1 . Treads . | . . . Leg . | . . . Wheel 3 | 2 1 . Hover . | . . . Flight . | . . . Utility 8 | 3 5 . Device 4 | 1 3 . Storage 2 | 1 1 . Processor 1 | 1 . . Hackware . | . . . Protection 1 | . 1 . Artifact . | . . . Weapon 34 | 2 29 3 Energy Gun 13 | 1 11 1 Energy Cannon . | . . . Ballistic Gun 8 | 1 6 1 Ballistic Cannon . | . . . Launcher 11 | . 10 1 Special Weapon . | . . . Impact Weapon 2 | . 2 . Slashing Weapon . | . . . Piercing Weapon . | . . . Special Melee Weapon . | . . . Unidentified Prototypes . | . . . Parts Lost 5 | . . 5 Power 1 | . . 1 Propulsion 1 | . . 1 Utility 1 | . . 1 Weapon 2 | . . 2 Highest Loss Streak 4 | . . 4 Average Slot Usage (%) 99 | . 99 97 Engine 6 | . 7 . Core 7 | . 6 13 Wheel 27 | . 28 27 Device 11 | . 10 13 Storage 12 | . 12 14 Processor 2 | . 3 . Protection 1 | . 2 . Energy Gun 15 | . 15 13 Ballistic Gun 6 | . 4 13 Launcher 4 | . 5 . Impact Weapon 1 | . 1 . Naked Turns . | . . . Heaviest Build 20 | 12 20 19 Greatest Support 20 | 20 20 20 Greatest Overweight (x) 1 | 1 . . Average Overweight (x) . | . . . Largest Inventory Capacity 8 | 6 8 8 Average Capacity 7 | 5 7 8 Most Carried 8 | 4 8 8 Average Carried 6 | 2 6 7 Final Capacity 8 | 4 8 8 Final Carried 8 | 4 8 8 Class Distribution -------------------- 100% | Mutant Dominant Class ---------------- Mutant | -10/Materials Mutant | -10/Mines Resources | -11 -10 -10 ----------- Run | Scr Mat Min Matter Collected 1181 | 304 782 95 Remotely 233 | . 138 95 Salvage Created 1570 | 142 1163 265 Parts 84 | 14 56 14 Haulers Intercepted 2 | . 2 . Recyclers Shooed 4 | . 2 2 Parts Field Recycled . | . . . Retrieved Matter . | . . . Parts Self-Destructed . | . . . Prevented . | . . . Kills | -11 -10 -10 ------- Run | Scr Mat Min Combat Hostiles Destroyed 20 | . 15 5 Guns 11 | . 7 4 AOE 9 | . 8 1 Classes Destroyed 9 | 2 7 . Worker 3 | . 3 . Builder 2 | . 2 . Tunneler 4 | 4 . . Hauler 2 | . 2 . Recycler 9 | 1 6 2 Operator 4 | . 4 . Watcher 3 | . 3 . Swarmer 6 | . 3 3 Grunt 14 | . 12 2 Best Kill Streak 9 | 5 9 3 Combat Bots Only 5 | . 5 3 Max Kills in Single Turn 4 | 2 4 2 Gunslinging . | . . . Exploded 4 | . 4 1 Melee . | . . . Uniques/NPCs Destroyed . | . . . Combat | -11 -10 -10 -------- Run | Scr Mat Min Damage Taken 834 | . 496 338 Core 254 | . 183 71 Absorbed by Shields . | . . . Core Remaining (%) 100 | 100 . . Volleys Fired 101 | 8 77 16 Largest 2 | 2 2 2 Hottest 95 | 60 95 80 Shots Fired 162 | 16 115 31 Gun 125 | 16 79 30 Cannon . | . . . Launcher 37 | . 36 1 Special . | . . . Kinetic 37 | 8 14 15 Thermal 28 | 8 9 11 Explosive 37 | . 36 1 Electromagnetic 60 | . 56 4 Robot Hit Streak 14 | 6 14 4 Robot Miss Streak 4 | 4 3 3 Penetration Max . | . . . Secondary Targets . | . . . Shots Hit Robots 94 | 8 70 16 Core Hits 72 | 6 54 12 Critical Hits . | . . . Critical Kills . | . . . Critical Parts Destroyed . | . . . Melee Attacks 7 | . 7 . Impact 7 | . 7 . Slashing . | . . . Piercing . | . . . Sneak Attacks 3 | . 3 . Combat Hostiles . | . . . Follow-up Attacks . | . . . Damage Inflicted 2463 | 114 2088 261 Guns 1106 | 114 819 173 Cannons . | . . . Explosions 1080 | . 992 88 Melee 277 | . 277 . Ramming . | . . . Kinetic 258 | 80 104 74 Thermal 349 | 34 241 74 Explosive 913 | . 825 88 Electromagnetic 666 | . 641 25 Impact 277 | . 277 . Slashing . | . . . Piercing . | . . . Highest Corruption 1 | . 1 1 Average Corruption 1 | . 1 1 Corruption Purged . | . . . Effects 11 | . 9 2 Message Errors 2 | . 2 . Energy Discharges 2 | . 1 1 Data Loss (minor) 5 | . 4 1 Targeting Errors 1 | . 1 . Weapon Failures 1 | . 1 . Overload Shots . | . . . Overflow Damage 135 | . 135 . Projectiles . | . . . Explosions 15 | . 15 . Melee 120 | . 120 . Knockbacks 2 | . 2 . Impact 2 | . 2 . Kinetic . | . . . Secondary . | . . . Self-Inflicted Damage 228 | . 228 . Shots 9 | . 9 . Rammed . | . . . Targets Rammed . | . . . Kicked . | . . . Crushed . | . . . Highest Temperature 214 | . 214 48 Average Temperature 44 | . 52 18 Received Heat Transfer 165 | . 159 6 Siege Activations . | . . . Robots Corrupted 1 | . 1 . Combat Hostiles . | . . . Parts Fried 8 | . 8 . Impact Corruptions 4 | . 4 . Robots Melted . | . . . Combat Hostiles . | . . . Parts Melted 1 | . 1 . Heat Transferred 719 | 75 422 222 Parts Sabotaged . | . . . Parts Stolen . | . . . Parts Stripped . | . . . Power Chain Reactions 3 | . 3 . Missiles Intercepted . | . . . Alert | -11 -10 -10 ------- Run | Scr Mat Min Peak Influence 536 | 25 536 238 Initial 103 | . 16 103 Average 285 | 10 316 220 Maximum Alert Level 2 | . 2 1 Low Security (%) 16 | 100 9 22 Level 1 71 | . 74 77 Level 2 12 | . 15 . Level 3 . | . . . Level 4 . | . . . Level 5 . | . . . High Security . | . . . Max Security . | . . . Squads Dispatched 6 | . 6 . Investigation 2 | . 2 . Extermination . | . . . Reinforcement 4 | . 4 . Assault . | . . . Garrison . | . . . Intercept . | . . . Construction Impeded . | . . . Haulers Reinforced . | . . . Stealth | -11 -10 -10 --------- Run | Scr Mat Min Distress Signals . | . . . Communications Jammed . | . . . Distress Signals . | . . . Times Spotted 34 | . 27 7 Peak Tracking Total 5 | . 5 3 Tactical Retreats . | . . . Traps | -11 -10 -10 ------- Run | Scr Mat Min Traps Triggered 2 | . 2 . Indirectly . | . . . Trap Hack Attempts . | . . . Triggered . | . . . Disarmed . | . . . Reprogrammed . | . . . Reused . | . . . Traps Extracted . | . . . Installed . | . . . Triggered . | . . . Machines | -11 -10 -10 ---------- Run | Scr Mat Min Machines Disabled 5 | . 5 . Max in Single Turn 2 | . 2 . Machines Sabotaged . | . . . Garrisons Compromised . | . . . Overloaded Fab Kills . | . . . Fab Network Shutdowns . | . . . Hacking | -11 -10 -10 --------- Run | Scr Mat Min Machines Accessed 8 | . 7 1 Terminals 5 | . 4 1 Fabricators . | . . . Repair Stations 1 | . 1 . Recycling Units 2 | . 2 . Scanalyzers . | . . . Garrison Access . | . . . Total Hacks 26 | . 23 3 Successful 13 | . 13 . Failed 13 | . 10 3 Catastrophic 1 | . . 1 Database Lockouts . | . . . Manual 18 | . 18 . Terminals 17 | . 14 3 Fabricators . | . . . Repair Stations 3 | . 3 . Recycling Units 6 | . 6 . Scanalyzers . | . . . Garrison Access . | . . . Terminal Hacks 1 | . 1 . Terminal Index 1 | . 1 . Fabricator Hacks . | . . . Repair Station Hacks 2 | . 2 . Scan Component 1 | . 1 . Repair 1 | . 1 . Recycling Unit Hacks 2 | . 2 . Report Inventory 2 | . 2 . Scanalyzer . | . . . Garrison Access Hacks . | . . . Unauthorized Hacks 8 | . 8 . Terminals 5 | . 5 . Assimilate 1 | . 1 . Botnet 3 | . 3 . Operators 1 | . 1 . Fabricators . | . . . Repair Stations . | . . . Recycling Units 3 | . 3 . Reject 2 | . 2 . Mask 1 | . 1 . Scanalyzers . | . . . Garrison Access . | . . . Data Cores Recovered . | . . . Used . | . . . Hacking Detections 7 | . 6 1 Full Trace Events . | . . . Feedback Events . | . . . Feedback Blocked . | . . . Robot Schematics Acquired . | . . . Robots Built . | . . . Matter . | . . . Time . | . . . Total Robot Build Rating . | . . . Part Schematics Acquired . | . . . Parts Built . | . . . Matter . | . . . Time . | . . . Total Part Build Rating . | . . . Parts Repaired 1 | . 1 . Time 26 | . 26 . Parts Recycled . | . . . Recycled Matter . | . . . Retrieved Matter . | . . . Retrieved Components . | . . . Parts Scanalyzed . | . . . Part Schematics Acquired . | . . . Parts Damaged . | . . . Bothacking | -11 -10 -10 ------------ Run | Scr Mat Min Used RIF Installer . | . . . Robots Hacked . | . . . Non-combat . | . . . Combat . | . . . Robot Hacks Applied . | . . . Relay Couplers Released . | . . . Robots Rewired . | . . . Allies Hacked . | . . . Hacks Repelled . | . . . Allies | -11 -10 -10 -------- Run | Scr Mat Min Total Allies 1 | . 1 . Largest Group 1 | . 1 1 Highest-Rated Group 10 | . 10 10 Highest-Rated Ally 10 | . 10 10 Total Orders 3 | . 2 1 STAY 2 | . 1 1 FOLLOW 1 | . 1 . Ally Attacks . | . . . Total Damage . | . . . Kills . | . . . Allies Corrupted . | . . . Allies Melted . | . . . Intel | -11 -10 -10 ------- Run | Scr Mat Min Robot Analysis Total . | . . . Derelict Logs Recovered . | . . . Drone Launches . | . . . Drone Recoveries . | . . . Exploration | -11 -10 -10 ------------- Run | Scr Mat Min Turns Passed 1884 | 90 1479 315 Spaces Moved 1734 | 63 1359 312 Core 9 | 9 . . Treads . | . . . Legs . | . . . Wheels 1725 | 54 1359 312 Hover . | . . . Flight . | . . . Fastest Speed 50 | 50 80 80 Average Speed 79 | 78 80 80 Slowest Speed 100 | 100 80 80 Overloaded Moves . | . . . Propulsion Burnouts . | . . . Robots Hopped . | . . . Cave-ins Triggered . | . . . Exploration Rate (%) 51 | 4 100 50 Regions Visited 2 Branch Regions 1 Pre-discovered Areas . | . . . Known Exits Taken . | . . . Unknown Exits Taken 2 | 1 1 . Scrap Searched 2 | . . 2 Spaces Dug 116 | . 116 . Terrain Destroyed 250 | . 242 8 Melee 4 | . 4 . Projectile . | . . . AOE 246 | . 238 8 Terrain Rammed . | . . . Walls Destroyed . | . . . Machines Disabled . | . . . Actions | -11 -10 -10 --------- Run | Scr Mat Min Total 2048 | 84 1616 348 Wait 115 | . 105 10 Move 1732 | 62 1358 312 Hop . | . . . Pick Up 21 | 5 13 3 Fast Attach 15 | 7 8 . Attach 3 | 1 1 1 Detach 1 | . 1 . Swap 32 | . 29 3 Drop 21 | 1 17 3 Fire 101 | 8 77 16 Melee 7 | . 7 . Ram . | . . . Kick . | . . . Crush . | . . . Escape Stasis . | . . . Rewire . | . . . Trap . | . . . Miscellaneous . | . . . Route ------- -11/Scrapyard -10/Materials (discovered 5 exits: [*Mat x3] / *Min x2) -10/Mines (discovered 1 exit: [*Mat]) History --------- Turn | Location | Event 5 | -11/Scrapyard | Discovered new exit (range 15) 91 | -11/Scrapyard | Entered Materials 335 | -10/Materials | Build established: Mutant 404 | -10/Materials | Discovered new exit (range 6) 522 | -10/Materials | Repaired Grenade Launcher 571 | -10/Materials | Discovered new exit (range 9) 598 | -10/Materials | Discovered new exit (range 10) 746 | -10/Materials | Core integrity fell below 50% 1009 | -10/Materials | Discovered new exit (range 10) 1128 | -10/Materials | Discovered new exit (range 12) 1570 | -10/Materials | Entered Mines 1570 | -10/Mines | Accompanied by 1 ally 1720 | -10/Mines | Received a Rocket Launcher from a helpful Derelict 1741 | -10/Mines | Discovered new exit (range 7) 1838 | -10/Mines | Assembled infested the area 1843 | -10/Mines | Assisted by a Guerilla fighting off Assembled 1875 | -10/Mines | Core integrity fell below 20% 1885 | -10/Mines | Destroyed by D-53 Grenadier with Mini Grenade Launcher Last Messages --------------- 01761_ Connecting with Terminal... 01761_ Current location identified: Mines 01838_ ALERT: Infestation in the mines, dispatching Demolisher response squad. 01843_ A derelict emerges from the shadows: "You need to get out of here! I've been tracking a group of Assembled to figure out where they're coming from, and they're closing on this area, come on!" 01851_ System corrupted: Component data lost. 01865_ K-01 Serf collects debris. 01871_ C-30 ARC bursts open, deploying its payload. 01871_ D-53 Grenadier unfolds itself. 01872_ Acquired 3 matter. 01872_ Hpw. Tractor Beam destroyed. 01872_ Med. Laser destroyed. 01872_ 5Z-8TN(h): "I'll hold them off! Go on ahead or try to find another way!" 01872_ HV Slug penetrates Wall. 01872_ Lgt. Nuclear Core destroyed. 01872_ K-01 Serf destroyed. 01874_ HV Slug penetrates Wall. 01875_ Wheel destroyed. 01875_ 5Z-8TN(h) destroyed. Map ----- +----------------------------------------------------+ | #T###??#!#???????????????????????????????????????? | | ##?????#=#???????????????????????????????????????? | | ???????#%#???????????????????????????????????????? | | ???????# #???????????????????????????????????????? | | ?####??# #???????????????????????????????????????? | | ## #### #???????????????????????????????????????? | | # #???????????????????????????????????????? | | # #####???????????????????????????????????????? | | # #???????????????????????????????????????????? | | # ##???????????????????????????????????????????? | | # #????????????????????????????????????????????? | | # ##???????????????????????????????????????????? | | ##??????????????????????????????????????????? | | #??????????????????????????????????????????? | | # #??????????????????????????????????????????? | | ## #??????????????????????????????????????????? | | ?### #??????????????????????????????????????????? | | ???# #??????????????????????????????????????????? | | ???# #??????????????????????????????????????????? | | ???# #??????????????????????####????????????????? | | ???# #?????????????????????## ##???????????????? | | ???# #?????????####????????# ##??????????????? | | ???# #???????### ###??????# #??????????????? | | ???# #?#????## ######## #??????????????? | | ???# ### #### d #???????????????? | | ???# ## d""" @ #????????????????? | | ???#" # """ ## ###### ##???????????????? | | ####%"# """ ### #????## ##??????????????? | | " """ ### ##????# ##?????????????? | | % ## ####### ###???????????? | | ! ##### ###?????????? | | #??## #?????????? | | # #???# #???????? | | ##### ## #???# #??????? | | ????## ### ## #####???# #??????? | | ?????###### ##?#########???????# ##??????? | | ??????????## ##??????????????????# ##???????? | | ???????????####????????????????????# ##????????? | | ????????????????????????????????????####?????????? | | ?????????????????????????????????????????????????? | | ?????????????????????????????????????????????????? | | | | | | | | | | | | | | | | | | | +----------------------------------------------------+ Best States ------------- Heat Dissipation 25 Energy Generation 14 Energy Capacity 250 Matter Stores 300 Matter Capacity 300 Sight Range 16 Robot Scan Range 10 Terrain Scan Range 16 Terrain Scan Density 60 Weapon Shielding 33 Evasion (%) 44 Item Schematics ----------------- None Robot Schematics ------------------ None Fabricated ------------ Nothing Alien Tech Used ----------------- None Achievements -------------- None Challenges ------------ None Game ------ Seed CoilAntimissileFlail Manual? 0 Play Time 00:58:57 Cumulative 188.7 hours Start 2020.11.14 @ 01:08:27 End 2020.11.14 @ 02:07:08 Sessions 1 Manual Loads 0 Difficulty Rogue Special Mode Halloween2020/ForbiddenLore Game No. 73 Rogue 73 Adventurer 0 Explorer 0 Win Type - Total 0 Types 0/0/0/0/0/0/0/0/0 Lore% 21 Gallery% 27 Achievement% 23 Wizard Run 0 Options --------- ASCII 0 Keyboard 1 Movement Vi Keybinds 0 Fullscreen 1 Font 12/Terminus Map View 83x54 Tactical HUD 1 Map Filters NONE Filters NONE Steam 1 RUN: c5091ef0-9e26-44a2-a3f9-8745d2b556cb